bitfinex-derivatives/quotes_ETHF0:USTF0_20250502
["timestamp","ask_amount","ask_price","bid_price","bid_amount"]
[1746147779589,5.62902,1848.6,1848.5,43.60048]
[1746147779894,5.62902,1848.6,1848.5,41.88168]
[1746147781499,4.5474,1848.6,1848.5,41.88168]
[1746147781996,7.0458,1848.6,1848.5,41.88168]
[1746147782198,8.12742,1848.6,1848.5,41.88168]
[1746147783403,7.0458,1848.6,1848.5,41.88168]
[1746147783698,8.12742,1848.6,1848.5,41.88168]
[1746147783891,8.12742,1848.6,1848.5,40.8]
[1746147784606,8.12742,1848.6,1848.5,41.88168]
[1746147785103,7.0458,1848.6,1848.5,41.88168]
[1746147785307,8.12742,1848.6,1848.5,41.88168]
[1746147785605,8.12742,1848.6,1848.5,43.60258]
[1746147787098,7.0458,1848.6,1848.5,43.60258]
[1746147787498,8.12742,1848.6,1848.5,42.5209]
[1746147788104,8.12742,1848.6,1848.5,43.60258]
[1746147789005,8.12742,1848.6,1848.5,42.5209]
[1746147789206,8.12742,1848.6,1848.5,40.8]
[1746147790008,8.12742,1848.6,1848.5,41.88168]
[1746147790305,7.0458,1848.6,1848.5,41.88168]
[1746147790604,8.12742,1848.6,1848.5,41.88168]
[1746147791401,8.12742,1848.6,1848.5,43.54648]
[1746147792209,7.0458,1848.6,1848.5,43.54648]
[1746147792402,7.0458,1848.6,1848.5,46.75428]
[1746147793205,7.0458,1848.6,1848.5,43.54648]
[1746147795113,6.2065,1848.6,1848.5,43.54648]
[1746147795306,6.2065,1848.6,1848.5,46.75428]
[1746147795608,6.2065,1848.6,1848.5,43.54648]
[1746147796310,3.696,1848.6,1848.5,43.54648]
[1746147796609,3.696,1848.6,1848.5,47.57238]
[1746147796912,3.696,1848.6,1848.5,58.50438]
[1746147797404,3.696,1848.6,1848.5,53.50438]
[1746147798710,3.696,1848.6,1848.5,58.50438]
[1746147799311,3.696,1848.6,1848.5,53.50438]
[1746147801015,3.696,1848.6,1848.5,58.50438]
[1746147801203,2.4611,1849.1,1849.0,1.08139]
[1746147801399,1.626,1849.1,1849.0,4.58839]
[1746147801708,3.54228,1849.4,1849.2,1.08123]
[1746147801913,3.54228,1849.4,1849.3,40.8]
[1746147802209,8.07178,1849.4,1849.3,44.307]
[1746147802399,8.07178,1849.4,1849.3,45.38821]
[1746147802602,8.07178,1849.4,1849.3,44.307]
[1746147802804,4.77718,1849.4,1849.3,44.307]
[1746147803004,5.61228,1849.4,1849.3,45.9915]
[1746147803204,7.20968,1849.4,1849.3,45.9915]
[1746147803707,6.1285,1849.4,1849.3,47.07271]
[1746147804008,7.20966,1849.4,1849.3,45.9915]
[1746147805113,7.20966,1849.4,1849.3,44.307]
[1746147818626,7.20966,1849.4,1849.3,45.38821]
[1746147818827,7.20966,1849.4,1849.3,44.307]
[1746147819826,7.20966,1849.4,1849.3,45.38821]
[1746147820326,7.20966,1849.4,1849.3,44.307]
[1746147820526,7.20966,1849.4,1849.3,45.38821]
[1746147821523,3.696,1849.4,1849.3,45.38821]
[1746147821725,3.696,1849.4,1849.3,48.59601]
[1746147821922,3.696,1849.4,1849.3,49.38821]
[1746147823323,3.696,1849.4,1849.3,55.32021]
[1746147827029,3.696,1849.4,1849.3,51.02101]
[1746147827326,7.23886,1849.4,1849.3,47.4948]
[1746147827528,7.23886,1849.4,1849.3,44.287]
[1746147828530,7.23886,1849.4,1849.3,47.4948]
[1746147828828,7.23886,1849.4,1849.3,48.57601]
[1746147829628,7.23886,1849.4,1849.3,47.4948]
[1746147829829,3.696,1849.4,1849.3,48.57601]
[1746147830328,4.77716,1849.4,1849.3,47.4948]
[1746147831423,4.77716,1849.4,1849.3,44.287]
[1746147831823,4.77716,1849.4,1849.3,45.36821]
[1746147832419,3.696,1849.4,1849.3,45.36821]
[1746147833326,3.696,1849.4,1849.3,48.57601]
[1746147833626,3.696,1849.4,1849.3,45.36821]
[1746147833930,3.696,1849.4,1849.3,48.57601]
[1746147834133,3.696,1849.4,1849.3,49.36311]
[1746147835530,3.696,1849.4,1849.3,48.2819]
[1746147836332,3.696,1849.4,1849.3,50.0266]
[1746147837537,3.696,1849.4,1849.3,51.10781]
[1746147845631,3.696,1849.4,1849.3,62.03981]
[1746147846135,1.08087,1849.9,1849.7,1.08094]
[1746147846337,1.08087,1849.9,1849.8,6.1003]
[1746147846532,1.6459,1850.0,1849.8,6.1003]
[1746147846735,1.6459,1850.0,1849.9,1.7433]
[1746147847031,1.08086,1849.9,1849.8,4.357]
[1746147847426,1.08086,1849.9,1849.8,3.486]
[1746147847639,2.72676,1849.9,1849.8,3.486]
[1746147848234,6.42276,1849.9,1849.8,3.486]
[1746147850332,1.08092,1849.8,1849.7,3.2078]
[1746147850637,4.46032,1849.8,1849.7,6.6938]
[1746147851139,8.15632,1849.8,1849.7,6.6938]
[1746147851640,1.08104,1849.6,1849.5,9.418]
[1746147851834,1.0811,1849.5,1849.4,3.2078]
[1746147852030,1.9146,1849.5,1849.4,3.2078]
[1746147852337,1.08116,1849.4,1849.3,62.18800081]
[1746147852541,3.64976,1849.4,1849.3,62.18800081]
[1746147852939,3.64976,1849.4,1849.3,58.70200081]
[1746147853141,3.64976,1849.4,1849.3,51.47120683]
[1746147853340,7.34576,1849.4,1849.3,51.47120683]
[1746147856739,7.34576,1849.4,1849.3,40.8]
[1746147860037,1.08133,1849.1,1849.0,3.2078]
[1746147860243,1.08133,1849.2,1849.0,7.77819]
[1746147860445,2.77065,1849.3,1849.1,2.77273]
[1746147860744,2.77065,1849.3,1849.2,42.4914]
[1746147861145,6.46665,1849.3,1849.2,42.4914]
[1746147862342,6.46665,1849.3,1849.2,43.57267]
[1746147862343,5.3854,1849.3,1849.2,43.57267]
[1746147862544,6.46661,1849.3,1849.2,43.57267]
[1746147862741,6.46661,1849.3,1849.2,42.4914]
[1746147863846,3.696,1849.3,1849.2,57.71247]
[1746147864544,3.696,1849.3,1849.2,52.71247]
[1746147867050,3.696,1849.3,1849.2,57.71247]
[1746147867346,1.08093,1849.8,1849.6,1.08099]
[1746147867546,1.08093,1849.8,1849.7,3.489]
[1746147867749,2.73641,1849.9,1849.7,6.20208]
[1746147868047,1.6555,1849.8,1849.7,6.20208]
[1746147869045,2.73642,1849.8,1849.7,6.20208]
[1746147869247,6.43242,1849.8,1849.7,5.1211]
[1746147869750,3.696,1849.8,1849.7,6.20208]
[1746147870959,4.77692,1849.8,1849.7,5.1211]
[1746147871249,6.47712,1849.8,1849.7,3.489]
[1746147871455,1.08098,1849.7,1849.6,9.1398]
[1746147871653,3.65388,1849.7,1849.6,12.6288]
[1746147872250,7.34988,1849.7,1849.6,12.6288]
[1746147872645,7.34988,1849.7,1849.6,9.1398]
[1746147875960,7.34988,1849.7,1849.6,10.8745]
[1746147876462,7.34988,1849.7,1849.6,4.9425]
[1746147880659,3.696,1849.7,1849.6,6.02354]
[1746147880860,3.696,1849.7,1849.6,7.64494]
[1746147890270,3.696,1849.7,1849.6,6.5639]
[1746147890571,3.696,1849.7,1849.6,7.64494]
[1746147890865,4.77698,1849.7,1849.6,3.2078]
[1746147891071,7.25108,1849.7,1849.6,6.6938]
[1746147892166,6.1701,1849.7,1849.6,7.77484]
[1746147892471,6.1701,1849.7,1849.6,9.48394]
[1746147893369,6.1701,1849.7,1849.6,10.33654]
[1746147893570,4.4847,1849.7,1849.6,10.33654]
[1746147894068,5.56568,1849.7,1849.6,10.33654]
[1746147894371,5.56568,1849.7,1849.6,9.2555]
[1746147895368,7.15408,1849.7,1849.6,9.2555]
[1746147895970,6.0731,1849.7,1849.6,10.33654]
[1746147896172,7.15408,1849.7,1849.6,9.2555]
[1746147897573,7.15408,1849.7,1849.6,10.33654]
[1746147897766,7.15408,1849.7,1849.6,9.2555]
[1746147898272,4.4847,1849.7,1849.6,10.33654]
[1746147898664,3.696,1849.7,1849.6,10.33654]
[1746147900372,4.77698,1849.7,1849.6,3.486]
[1746147900567,6.44018,1849.7,1849.6,3.486]
[1746147900964,6.44018,1849.7,1849.6,4.56704]
[1746147901167,3.696,1849.7,1849.6,4.56704]
[1746147901371,3.696,1849.7,1849.6,7.77484]
[1746147902875,3.696,1849.7,1849.6,9.43574]
[1746147903471,3.696,1849.7,1849.6,10.26734]
[1746147908468,3.696,1849.7,1849.6,9.43574]
[1746147908675,5.4142,1849.7,1849.6,9.43574]
[1746147908875,6.49518,1849.7,1849.6,6.6938]
[1746147909572,1.08104,1849.6,1849.5,7.13390129]
[1746147909777,3.45764,1849.6,1849.5,10.61990129]
[1746147910280,7.15364,1849.6,1849.5,14.15720683]
[1746147911375,7.15364,1849.6,1849.5,10.67120683]
[1746147911978,12.15364,1849.6,1849.5,10.67120683]
[1746147914879,1.08119,1849.4,1849.2,52.23441905]
[1746147915280,1.6126,1849.3,1849.2,52.23441905]
[1746147915787,2.69381,1849.3,1849.2,51.15316905]
[1746147916382,6.38981,1849.3,1849.2,51.15316905]
[1746147917983,6.38981,1849.3,1849.2,52.23443905]
[1746147918383,6.38981,1849.3,1849.2,45.08907]
[1746147918577,6.38981,1849.3,1849.2,44.0078]
[1746147924092,5.3086,1849.3,1849.2,45.08907]
[1746147924388,3.696,1849.3,1849.2,46.80757]
[1746147925091,4.77721,1849.3,1849.2,46.80757]
[1746147925285,7.33321,1849.3,1849.2,46.80757]
[1746147925485,6.252,1849.3,1849.2,46.80757]
[1746147929989,7.33321,1849.3,1849.2,46.80757]
[1746147930194,7.33321,1849.3,1849.2,45.7263]
[1746147930395,6.252,1849.3,1849.2,46.80757]
[1746147930600,7.33321,1849.3,1849.2,45.7263]
[1746147930893,7.33321,1849.3,1849.2,46.80757]
[1746147931082,7.33321,1849.3,1849.2,44.0078]
[1746147931782,7.33321,1849.3,1849.2,3.2078]
[1746147932293,7.33321,1849.3,1849.2,44.0078]
[1746147933386,1.08133,1849.1,1849.0,1.7425]
[1746147933592,1.08139,1849.0,1848.9,13.84016905]
[1746147933997,1.08139,1849.0,1848.9,54.64016905]
[1746147934196,4.77739,1849.0,1848.9,54.64016905]
[1746147935691,4.77739,1849.0,1848.9,47.94536905]
[1746147937592,7.98519,1849.0,1848.9,7.14536905]
[1746147939198,12.98519,1849.0,1848.9,7.14536905]
[1746147942702,9.77739,1849.0,1848.9,7.14536905]
[1746147942893,4.77739,1849.0,1848.9,7.14536905]
[1746147943092,7.98519,1849.0,1848.9,7.14536905]
[1746147944499,8.78929,1849.0,1848.9,7.14536905]
[1746147946795,1.08145,1848.9,1848.8,9.48591683]
[1746147947000,3.48465,1848.9,1848.8,9.48591683]
[1746147947201,12.18065,1848.9,1848.8,8.39746683]
[1746147947499,7.18065,1848.9,1848.8,8.39746683]
[1746147949397,7.18065,1848.9,1848.8,6.48188683]
[1746147949596,7.18065,1848.9,1848.7,14.15880265]
[1746147949597,1.08162,1848.6,1848.5,40.8]
[1746147950198,4.77762,1848.6,1848.5,40.8]
[1746147952304,4.77762,1848.6,1848.5,41.6056]
[1746147955409,6.37022,1848.6,1848.5,41.6056]
[1746147958100,6.37022,1848.6,1848.5,43.2702]
[1746147959510,3.696,1848.6,1848.5,44.35188]
[1746147959700,3.696,1848.6,1848.5,49.35188]
[1746147959901,2.5104,1849.2,1848.9,1.08142]
[1746147960097,1.08139,1849.0,1848.9,3.2078]
[1746147960809,1.08139,1849.0,1848.9,4.28925]
[1746147961206,4.77739,1849.0,1848.9,4.28925]
[1746147961808,3.696,1849.0,1848.9,4.28925]
[1746147962202,4.77739,1849.0,1848.9,4.28925]
[1746147965009,3.696,1849.0,1848.9,9.28925]
[1746147965402,3.696,1849.0,1848.9,12.77625]
[1746147968112,3.696,1849.0,1848.9,13.2074952]
[1746147970412,3.696,1849.0,1848.9,8.2074952]
[1746147974517,3.696,1849.0,1848.9,13.2074952]
[1746147975112,2.69335,1849.5,1848.9,12.1260452]
[1746147975316,1.08115,1849.5,1849.4,1.08116]
[1746147976120,4.77715,1849.5,1849.4,1.08116]
[1746147976319,6.38575,1849.5,1849.4,1.08116]
[1746147978119,6.38575,1849.5,1849.3,1.90116]
[1746147978522,6.38575,1849.5,1849.4,1.08116]
[1746147980322,6.38575,1849.5,1849.3,1.6517]
[1746147980523,1.5938,1849.4,1849.3,2.73291]
[1746147981021,3.696,1849.5,1849.4,1.08116]
[1746147981228,3.696,1849.5,1849.4,5.94066]
[1746147984022,5.3837,1849.5,1849.4,5.94066]
[1746147985529,6.4648,1849.5,1849.4,5.94066]
[1746147986132,5.3837,1849.5,1849.4,5.94066]
[1746147987637,3.696,1849.5,1849.4,4.28896]
[1746147988431,4.7771,1849.5,1849.4,4.28896]
[1746147989038,3.696,1849.5,1849.4,4.28896]
[1746147989537,4.7771,1849.5,1849.4,3.2078]
[1746147990237,3.696,1849.5,1849.0,5.932]
[1746147990534,1.08127,1849.2,1849.1,3.484]
[1746147991225,4.77727,1849.2,1849.1,3.484]
[1746147996634,1.08133,1849.1,1849.0,3.2078]
[1746147996841,1.08133,1849.1,1849.0,6.6928]
[1746147997140,4.77733,1849.1,1849.0,6.6928]
[1746147997439,4.77733,1849.1,1849.0,3.2078]
[1746147997638,4.77733,1849.1,1849.0,6.6928]
[1746147997828,4.77733,1849.1,1849.0,3.2078]
[1746147998031,1.08151,1848.8,1848.7,9.417]
[1746147998227,1.08162,1848.6,1848.5,40.8]
[1746147998426,1.08162,1848.6,1848.5,44.285]
[1746147998640,1.08162,1848.6,1848.5,40.8]
[1746147998828,1.08162,1848.6,1848.5,44.285]
[1746147999140,4.77762,1848.6,1848.5,44.285]
[1746147999338,4.77762,1848.6,1848.5,45.36668]
[1746147999542,4.77762,1848.6,1848.5,44.285]
[1746147999839,4.77762,1848.6,1848.5,45.36668]
[1746148001440,4.77762,1848.6,1848.5,44.285]
[1746148001941,4.77762,1848.6,1848.5,40.8]
[1746148004536,4.77762,1848.6,1848.5,41.88168]
[1746148004742,3.696,1848.6,1848.5,41.88168]
[1746148005046,4.77762,1848.6,1848.5,41.88168]
[1746148005543,3.696,1848.6,1848.5,41.88168]
[1746148008338,3.696,1848.6,1848.5,45.08948]
[1746148009037,3.696,1848.6,1848.5,50.08948]
[1746148010147,1.08139,1849.0,1848.9,1.08141]
[1746148010446,1.08139,1849.0,1848.8,1.08146]
[1746148011047,1.08139,1849.0,1848.9,1.08145]
[1746148011351,4.77739,1849.0,1848.9,1.08145]
[1746148011749,4.77739,1849.0,1848.8,1.08147]
[1746148012043,1.08149,1848.9,1848.8,1.08151]
[1746148012439,4.77743,1849.0,1848.8,1.08151]
[1746148012740,1.08148,1848.9,1848.7,6.6918]
[1746148012937,1.08148,1848.9,1848.7,7.77334]
[1746148013143,4.77748,1848.9,1848.8,1.08151]
[1746148013442,4.77748,1848.9,1848.7,7.77332]
[1746148013846,3.696,1848.9,1848.8,1.08151]
[1746148014042,4.77745,1848.9,1848.8,1.08151]
[1746148014247,3.696,1848.9,1848.8,1.08151]
[1746148014545,4.77745,1848.9,1848.8,1.08151]
[1746148014747,4.77745,1848.9,1848.7,7.77332]
[1746148015446,3.696,1848.9,1848.8,1.08151]
[1746148023751,4.4933,1848.9,1848.8,1.08151]
[1746148024049,6.134,1848.9,1848.8,2.74531]
[1746148024649,7.21545,1848.9,1848.8,2.74531]
[1746148024851,7.21549,1848.9,1848.8,3.484]
[1746148025662,7.21549,1848.9,1848.6,5.932]
[1746148025663,1.08157,1848.7,1848.6,5.932]
[1746148026153,1.08162,1848.6,1848.5,44.0078]
[1746148026351,4.33772,1848.6,1848.5,44.0078]
[1746148026554,3.2561,1848.6,1848.5,45.08948]
[1746148027148,6.9521,1848.6,1848.5,46.72098]
[1746148027348,4.5141,1848.6,1848.5,46.72098]
[1746148027552,3.696,1848.6,1848.5,46.72098]
[1746148028255,5.60732,1848.6,1848.5,46.72098]
[1746148028554,6.1846,1848.6,1848.5,46.72098]
[1746148029257,3.696,1848.6,1848.5,46.72098]
[1746148029647,3.696,1848.6,1848.5,47.50968]
[1746148032152,4.77762,1848.6,1848.5,44.284]
[1746148032354,4.77762,1848.6,1848.5,41.88168]
[1746148032855,4.77762,1848.6,1848.5,40.8]
[1746148033053,5.411,1848.6,1848.5,41.88168]
[1746148033457,7.0926,1848.6,1848.5,41.88168]
[1746148033856,4.538,1848.6,1848.5,45.08948]
[1746148034157,3.696,1848.6,1848.5,47.53768]
[1746148035763,0.58497095,1848.6,1848.5,52.53768]
[1746148036363,0.7995,1849.0,1848.9,1.08145]
[1746148036552,0.7995,1849.0,1848.9,4.56345]
[1746148036955,0.7995,1849.0,1848.9,6.20465]
[1746148037159,4.4955,1849.0,1848.9,6.20465]
[1746148038054,3.696,1849.0,1848.9,6.20465]
[1746148040054,2.60277,1849.0,1848.9,6.20465]
[1746148040254,0.8349,1849.3,1849.2,1.08127]
[1746148040455,7.63535106,1849.5,1849.4,1.08116]
[1746148040657,3.59265106,1849.5,1849.4,1.08116]
[1746148041054,3.59265106,1849.5,1849.4,2.75076]
[1746148041253,7.28865106,1849.5,1849.4,43.55076]
[1746148041456,3.696,1849.5,1849.4,43.55076]
[1746148041953,3.696,1849.5,1849.4,49.48276]
[1746148043665,2.35177,1849.5,1849.4,49.48276]
[1746148044164,3.59265106,1849.8,1849.7,1.08098]
[1746148044356,3.59265106,1849.8,1849.7,7.77078]
[1746148044856,3.59265106,1849.8,1849.7,50.18908]
[1746148045059,7.28865106,1849.8,1849.7,50.18908]
[1746148045554,7.28865106,1849.8,1849.7,51.00978]
[1746148045759,3.696,1849.8,1849.7,51.00978]
[1746148045960,3.696,1849.8,1849.7,50.18908]
[1746148046161,5.4408,1849.8,1849.7,50.18908]
[1746148046662,6.2493,1849.8,1849.7,50.18908]
[1746148048860,2.58089,1849.8,1849.7,44.0078]
[1746148049066,2.58089,1849.8,1849.7,53.56978]
[1746148049257,3.2171,1850.3,1850.2,1.08069]
[1746148049455,3.59265106,1850.8,1850.2,7.76947]
[1746148049658,0.8021,1850.4,1850.2,3.2078]
[1746148049864,0.8021,1850.4,1850.3,3.481]
[1746148050053,3.696,1850.4,1850.3,5.1021]
[1746148050258,3.696,1850.4,1850.3,6.18273]
[1746148050858,4.39475106,1850.8,1850.3,6.18273]
[1746148050859,3.59265106,1850.8,1850.7,1.0804]
[1746148051059,3.59265106,1850.8,1850.7,48.5692]
[1746148052065,5.24445106,1850.8,1850.7,45.0882]
[1746148052366,8.94045106,1850.8,1850.7,48.5692]
[1746148052566,8.94045106,1850.8,1850.7,44.281]
[1746148052765,8.94045106,1850.8,1850.7,45.3614]
[1746148052967,8.94045106,1850.8,1850.7,48.5692]
[1746148053966,5.3478,1850.8,1850.7,48.5692]
[1746148054360,5.3478,1850.8,1850.7,44.281]
[1746148054762,1.0804,1850.7,1850.6,3.48]
[1746148055066,2.70131,1850.5,1850.0,3.48]
[1746148055265,4.0201,1850.4,1850.1,40.8]
[1746148055474,1.08073,1850.2,1850.1,40.8]
[1746148055766,1.08081,1850.0,1849.9,10.71791211]
[1746148056161,9.77681,1850.0,1849.9,10.71791211]
[1746148056360,11.35531,1850.0,1849.9,51.51791211]
[1746148056560,14.56311,1850.0,1849.9,51.51791211]
[1746148056767,11.35531,1850.0,1849.9,51.51791211]
[1746148056960,6.35531,1850.0,1849.9,51.51791211]
[1746148057163,6.35531,1850.0,1849.9,40.8]
[1746148057365,11.35531,1850.0,1849.9,40.8]
[1746148057568,6.35531,1850.0,1849.9,40.8]
[1746148058161,5.2745,1850.0,1849.9,41.88086]
[1746148058467,3.696,1850.0,1849.9,48.56866]
[1746148059671,3.696,1850.0,1849.9,53.56866]
[1746148059858,3.696,1850.0,1849.9,48.56866]
[1746148061263,5.4264,1850.2,1849.9,47.4878]
[1746148061463,1.08081,1850.0,1849.9,44.0078]
[1746148061664,1.08081,1850.0,1849.9,47.4878]
[1746148062065,4.77681,1850.0,1849.9,47.4878]
[1746148062272,6.47591,1850.0,1849.9,47.4878]
[1746148063365,7.34131,1850.0,1849.9,47.4878]
[1746148063970,7.34131,1850.0,1849.9,40.8]
[1746148064172,1.08098,1849.7,1849.6,6.6878]
[1746148064566,1.08098,1849.7,1849.6,47.4878]
[1746148064775,1.08098,1849.7,1849.6,44.28]
[1746148064968,1.08098,1849.7,1849.6,40.8]
[1746148065163,11.44488,1849.7,1849.6,40.8]
[1746148067675,2.70299,1849.4,1849.0,50.537]
[1746148067873,1.08133,1849.1,1849.0,54.068]
[1746148068070,1.08139,1849.0,1848.9,3.531]
[1746148068373,1.08162,1848.6,1848.5,5.932]
[1746148068569,5.91143,1848.9,1848.5,40.8]
[1746148068764,2.5398,1848.8,1848.5,40.8]
[1746148069182,1.08162,1848.6,1848.5,40.8]
[1746148070177,4.77762,1848.6,1848.5,40.8]
[1746148070779,7.98542,1848.6,1848.5,40.8]
[1746148071879,4.77762,1848.6,1848.5,40.8]
[1746148075576,3.696,1848.6,1848.5,45.08948]
[1746148075776,3.696,1848.6,1848.5,48.62248]
[1746148076083,3.696,1848.6,1848.5,53.62248]
[1746148077986,3.696,1848.6,1848.5,59.55448]
[1746148078179,2.435,1849.0,1848.8,1.08147]
[1746148078579,2.435,1849.0,1848.9,1.6406]
[1746148079087,6.131,1849.0,1848.9,1.6406]
[1746148079275,7.21239,1849.0,1848.9,1.6406]
[1746148079681,6.131,1849.0,1848.9,1.6406]
[1746148079980,6.131,1849.0,1848.8,1.08147]
[1746148080289,6.131,1849.0,1848.9,1.08145]
[1746148081487,3.696,1849.0,1848.9,4.28925]
[1746148081882,3.696,1849.0,1848.9,5.93175]
[1746148082880,2.56611,1849.0,1848.9,11.86375]
[1746148083087,6.2041,1849.7,1849.4,1.08112]
[1746148083387,1.5901,1849.7,1849.6,1.08104]
[1746148084076,5.2861,1849.7,1849.6,41.88104]
[1746148086589,3.696,1849.7,1849.6,41.88104]
[1746148087191,3.696,1849.7,1849.6,40.8]
[1746148087383,3.696,1849.7,1849.6,41.88104]
[1746148087579,3.696,1849.7,1849.6,40.8]
[1746148087893,3.696,1849.7,1849.6,41.88104]
[1746148091399,3.696,1849.7,1849.6,45.08884]
[1746148092195,9.77698,1849.7,1849.6,40.8]
[1746148092397,1.0811,1849.5,1849.4,3.2078]
[1746148092898,1.0811,1849.5,1849.4,44.0078]
[1746148093095,1.0811,1849.5,1849.4,40.8]
[1746148093300,1.08116,1849.4,1849.3,9.464]
[1746148093491,1.08127,1849.2,1848.8,9.9648]
[1746148093698,1.08127,1849.2,1849.0,1.08138]
[1746148093893,1.08127,1849.2,1849.1,40.8]
[1746148094198,4.77727,1849.2,1849.1,41.88133]
[1746148094401,4.77727,1849.2,1849.1,40.8]
[1746148095103,3.696,1849.2,1849.1,41.88133]
[1746148097102,3.696,1849.2,1849.1,46.88133]
[1746148097300,0.8416,1849.7,1849.2,2.70316]
[1746148097598,9.49072,1850.1,1849.3,9.9898]
[1746148097599,1.7102,1849.9,1849.3,9.9898]
[1746148097800,2.79126,1849.6,1849.4,1.08114]
[1746148097995,1.08114,1849.5,1849.3,6.782]
[1746148098200,5.4062,1849.5,1849.1,49.9398]
[1746148098404,1.89559,1849.4,1849.2,4.66227]
[1746148098592,2.79141,1849.3,1849.2,5.1652]
[1746148099098,1.7102,1849.3,1849.2,6.24647]
[1746148099303,5.4062,1849.3,1849.2,6.24647]
[1746148100298,6.48741,1849.3,1849.2,3.581]
[1746148100699,1.08127,1849.2,1849.1,44.381]
[1746148101001,2.80177,1849.2,1849.1,44.381]
[1746148101200,6.49777,1849.2,1849.1,44.381]
[1746148101399,6.49777,1849.2,1849.1,45.46233]
[1746148101600,5.4165,1849.2,1849.1,45.46233]
[1746148102600,6.49777,1849.2,1849.1,40.8]
[1746148103401,5.4165,1849.2,1849.1,41.88133]
[1746148103607,6.49777,1849.2,1849.1,40.8]
[1746148103806,6.49777,1849.2,1849.1,41.88133]
[1746148104614,5.4165,1849.2,1849.1,41.88133]
[1746148106911,5.4165,1849.2,1849.1,45.08913]
[1746148108106,3.696,1849.2,1849.1,45.08913]
[1746148108706,3.696,1849.2,1849.1,50.89783]
[1746148109106,1.642,1849.6,1849.5,1.0811]
[1746148110311,5.338,1849.6,1849.5,1.0811]
[1746148110813,3.696,1849.6,1849.5,1.0811]
[1746148111016,3.696,1849.6,1849.5,4.2889]
[1746148111215,3.696,1849.6,1849.5,5.0976]
[1746148114115,0.873,1849.9,1849.8,1.08092]
[1746148114313,0.8204,1850.1,1850.0,1.08081]
[1746148114514,2.4313,1850.1,1850.0,1.08081]
[1746148114813,1.08083,1850.0,1849.8,1.0809]
[1746148115116,6.38773,1850.0,1849.8,2.7418]
[1746148115518,1.7409,1849.9,1849.8,2.7418]
[1746148116109,1.08092,1849.8,1849.7,3.581]
[1746148116416,1.08104,1849.6,1849.5,3.2078]
[1746148116612,1.08104,1849.6,1849.1,42.5438]
[1746148116613,1.08127,1849.2,1849.1,42.5438]
[1746148116817,1.08127,1849.2,1849.0,11.76551725]
[1746148117017,1.7409,1849.1,1849.0,11.76551725]
[1746148117221,2.5435,1849.1,1849.0,11.76551725]
[1746148117519,2.5435,1849.1,1849.0,52.56551725]
[1746148117727,3.696,1849.2,1849.1,1.08133]
[1746148118228,3.696,1849.2,1849.0,46.1248]
[1746148118229,1.08133,1849.1,1849.0,46.1248]
[1746148118430,2.66363,1849.1,1849.0,47.20619]
[1746148118620,1.5823,1849.1,1849.0,47.20619]
[1746148119029,2.66363,1849.1,1849.0,44.381]
[1746148119217,5.2783,1849.1,1849.0,45.46239]
[1746148120027,6.35963,1849.1,1849.0,44.381]
[1746148120729,6.35963,1849.1,1849.0,40.8]
[1746148121729,1.08151,1848.8,1848.7,3.2078]
[1746148122030,1.08162,1848.6,1848.5,19.82493725]
[1746148122332,1.08162,1848.6,1848.5,54.69293725]
[1746148122632,1.08162,1848.6,1848.5,51.48513725]
[1746148122930,1.08162,1848.6,1848.5,52.56681725]
[1746148123128,2.78551,1848.7,1848.5,52.56681725]
[1746148123332,4.77762,1848.6,1848.5,51.48513725]
[1746148123524,6.48152,1848.6,1848.5,51.48513725]
[1746148124035,5.3999,1848.6,1848.5,51.48513725]
[1746148124233,5.3999,1848.6,1848.5,54.29461725]
[1746148124530,6.48152,1848.6,1848.5,51.48513725]
[1746148125634,6.48152,1848.6,1848.5,44.382]
[1746148125831,5.3999,1848.6,1848.5,40.8]
[1746148126024,5.3999,1848.6,1848.5,45.08948]
[1746148126229,3.696,1848.6,1848.5,45.08948]
[1746148126428,3.696,1848.6,1848.5,46.77188]
[1746148127236,6.49307,1848.9,1848.6,1.08157]
[1746148127430,6.49307,1848.9,1848.7,1.5882]
[1746148127635,5.4116,1848.9,1848.7,1.5882]
[1746148127935,1.08151,1848.8,1848.7,42.3882]
[1746148128132,6.46191,1848.8,1848.7,42.3882]
[1746148128738,5.3804,1848.8,1848.7,42.3882]
[1746148129038,6.46191,1848.8,1848.7,42.3882]
[1746148129537,5.3804,1848.8,1848.7,43.46977]
[1746148129730,6.46191,1848.8,1848.7,43.46977]
[1746148130538,5.3804,1848.8,1848.7,43.46977]
[1746148131137,3.696,1848.8,1848.7,46.67757]
[1746148131639,3.696,1848.8,1848.7,43.46977]
[1746148131937,4.77751,1848.8,1848.7,40.8]
[1746148132138,6.50631,1848.8,1848.7,40.8]
[1746148134238,5.4248,1848.8,1848.5,6.73714]
[1746148134441,5.4248,1848.8,1848.5,8.3979]
[1746148134442,2.81111,1848.7,1848.5,8.3979]
[1746148134634,1.7295,1848.6,1848.5,8.3979]
[1746148134834,1.7295,1848.6,1848.5,50.27958]
[1746148135227,5.4255,1848.6,1848.5,50.27958]
[1746148135432,5.4255,1848.6,1848.5,46.71058]
[1746148135640,5.4255,1848.6,1848.5,49.1979]